fUSD/lending_fUSD_20260106
["ID","MTS","AMOUNT","RATE_DAILY","PERIOD"]
[400597405,1767738642366,-412.123505,0.00031507,31]
[400597406,1767738642376,-251.31162,0.00031507,31]
[400597407,1767738642386,-412.123505,0.00031507,31]
[400597408,1767738642396,-151.0,0.00031507,31]
[400597409,1767738642406,-251.31162,0.00031507,31]
[400597410,1767738642415,-412.123505,0.00031507,31]
[400597411,1767738642424,-153.782534,0.00031507,31]
[400597412,1767738642434,-1820.845269,0.00031507,31]
[400597413,1767738642443,-1684.885026,0.00031507,31]
[400597414,1767738642453,-251.31162,0.00031507,31]
[400597415,1767738642462,-1820.845269,0.00031507,31]
[400597416,1767738642471,-1684.885026,0.00031507,31]
[400597417,1767738642482,-251.31162,0.00031507,31]
[400597418,1767738642491,-1820.845269,0.00031507,31]
[400597419,1767738642501,-1684.885026,0.00031507,31]
[400597420,1767738642510,-1820.845269,0.00031507,31]
[400597421,1767738642519,-1684.885026,0.00031507,31]
[400597422,1767738642528,-151.0,0.00031507,31]
[400597423,1767738642538,-151.0,0.00031507,31]
[400597424,1767738642547,-985.481451,0.00031507,31]
[400597425,1767738642557,-985.481451,0.00031507,31]
[400597426,1767738642566,-997.029049,0.00031507,31]
[400597427,1767738642576,-985.481451,0.00031507,31]
[400597428,1767738642723,-997.029049,0.00031507,31]
[400597429,1767738642733,-985.481451,0.00031507,31]
[400597430,1767738642743,-997.029049,0.00031507,31]
[400597431,1767738642752,-391.466354,0.00031507,31]
[400597432,1767738642763,-997.029049,0.00031507,31]
[400597433,1767738642772,-391.466354,0.00031507,31]
[400597434,1767738642782,-391.466354,0.00031507,31]
[400597435,1767738642792,-391.466354,0.00031507,31]
[400597436,1767738642801,-163.515507,0.00031507,31]
[400597437,1767738642810,-980.547522,0.00031507,31]
[400597438,1767738642819,-980.547522,0.00031507,31]
[400597440,1767738642828,-980.547522,0.00031507,31]
[400597442,1767738642838,-980.547522,0.00031507,31]
[400597445,1767738642852,-594.783126,0.00031507,31]
[400597447,1767738642862,-151.0,0.00031507,31]
[400597449,1767738642872,-594.783126,0.00031507,31]
[400597451,1767738642882,-151.0,0.00031507,31]
[400597453,1767738642891,-594.783126,0.00031507,31]
[400597454,1767738642900,-264.32113,0.00031507,31]
[400597455,1767738642910,-594.783126,0.00031507,31]
[400597456,1767738642919,-264.32113,0.00031507,31]
[400597457,1767738642928,-151.0,0.00031507,31]
[400597458,1767738642938,-264.32113,0.00031507,31]
[400597459,1767738642947,-185.600499,0.00031507,31]
[400597460,1767738642956,-264.32113,0.00031507,31]
[400597461,1767738642967,-151.0,0.00031507,31]
[400597462,1767738642976,-151.0,0.00031507,31]
[400597463,1767738642985,-151.0,0.00031507,31]
[400597464,1767738642995,-151.0,0.00031507,31]
[400597465,1767738643004,-151.0,0.00031507,31]
[400597466,1767738643013,-151.0,0.00031507,31]
[400597467,1767738643022,-151.0,0.00031507,31]
[400597468,1767738643032,-154.52,0.00031682,2]
[400597469,1767738643041,-300.0,0.00031699,10]
[400597470,1767738643051,-613.8,0.00031723,30]
[400597471,1767738643061,-161.9193111,0.00032,30]
[400597472,1767738643071,-167.87682571,0.00032124,2]
[400597473,1767738643080,-1040.62,0.000322,30]
[400597474,1767738643090,-419.33594592,0.00032441,30]
[400597475,1767738643099,-154.98,0.00032455,2]
[400597476,1767738643109,-502.0,0.00032741,5]
[400597477,1767738643118,-637.0411116,0.00032761,7]
[400597478,1767738643128,-803.7588,0.0003287,2]
[400597479,1767738643137,-500.0,0.00032876,2]
[400597480,1767738643146,-384.86594301,0.00032876,2]
[400597481,1767738643156,-393.99075276,0.00032876,2]
[400597482,1767738643165,-495.85404393,0.00032876,2]
[400597483,1767738643175,-500.0,0.00032876,2]
[400597484,1767738643184,-500.0,0.00032876,2]
[400597485,1767738643194,-500.0,0.00032876,2]
[400597486,1767738643203,-500.0,0.00032876,2]
[400597487,1767738643212,-500.0,0.00032876,2]
[400597488,1767738643224,-500.0,0.00032876,2]
[400597489,1767738643234,-564.27174271,0.00032876,2]
[400597490,1767738643243,-500.0,0.00032876,2]
[400597491,1767738643252,-500.0,0.00032876,2]
[400597492,1767738643261,-500.0,0.00032876,2]
[400597493,1767738643271,-500.0,0.00032876,2]
[400597494,1767738643280,-500.0,0.00032876,2]
[400597495,1767738643290,-500.0,0.00032876,2]
[400597496,1767738643300,-500.0,0.00032876,2]
[400597497,1767738643310,-500.0,0.00032876,2]
[400597498,1767738643320,-500.0,0.00032876,2]
[400597499,1767738643330,-500.0,0.00032876,2]
[400597500,1767738643340,-500.0,0.00032876,2]
[400597501,1767738643350,-500.0,0.00032876,2]
[400597502,1767738643361,-500.0,0.00032876,2]
[400597503,1767738643371,-500.0,0.00032876,2]
[400597504,1767738643382,-500.0,0.00032876,2]
[400597505,1767738643392,-500.0,0.00032876,2]
[400597506,1767738643402,-500.0,0.00032876,2]
[400597507,1767738643412,-500.0,0.00032876,2]
[400597508,1767738643421,-500.0,0.00032876,2]
[400597509,1767738643431,-500.0,0.00032876,2]
[400597510,1767738643441,-500.0,0.00032876,2]
[400597511,1767738643451,-362.24207768,0.00032876,2]
[400597512,1767738643460,-500.0,0.00032876,2]
[400597513,1767738643470,-358.11672421,0.00032876,2]
[400597514,1767738643479,-500.0,0.00032876,2]
[400597515,1767738643489,-500.0,0.00032876,2]
[400597516,1767738643498,-455.81015951,0.00032876,2]
[400597517,1767738643508,-277.61553043,0.00032876,2]
[400597518,1767738643517,-500.0,0.00032876,2]
[400597519,1767738643526,-336.7839898,0.00032876,2]
[400597520,1767738643535,-500.0,0.00032876,2]
[400597521,1767738643544,-500.0,0.00032876,2]
[400597522,1767738643553,-500.0,0.00032876,2]
[400597523,1767738643563,-500.0,0.00032876,2]
[400597524,1767738643572,-500.0,0.00032876,2]
[400597525,1767738643581,-500.0,0.00032876,2]
[400597526,1767738643590,-364.05687267,0.00032876,2]
[400597527,1767738643599,-500.0,0.00032876,2]
[400597528,1767738643608,-500.0,0.00032876,2]
[400597529,1767738643618,-500.0,0.00032876,2]
[400597530,1767738643631,-500.0,0.00032876,2]
[400597531,1767738643640,-500.0,0.00032876,2]
[400597532,1767738643649,-500.0,0.00032876,2]
[400597533,1767738643659,-500.0,0.00032876,2]
[400597534,1767738643669,-500.0,0.00032876,2]
[400597535,1767738643678,-200.0,0.00032876,2]
[400597536,1767738643688,-343.53,0.00032877,2]
[400597537,1767738643699,-151.0,0.00032877,31]
[400597538,1767738643708,-167.040625,0.00032877,31]
[400597539,1767738643717,-609.90650844,0.00032877,7]
[400597540,1767738643728,-609.90650844,0.00032877,7]
[400597541,1767738643737,-609.90650844,0.00032877,7]
[400597542,1767738643747,-609.90650844,0.00032877,7]
[400597543,1767738643757,-609.90650844,0.00032877,7]
[400597544,1767738643767,-609.90650844,0.00032877,7]
[400597545,1767738643777,-609.90650844,0.00032877,7]
[400597546,1767738643787,-609.90650844,0.00032877,7]
[400597547,1767738643796,-609.90650844,0.00032877,7]
[400597548,1767738643806,-609.90650844,0.00032877,7]
[400597549,1767738643816,-609.90650844,0.00032877,7]
[400597550,1767738643827,-609.90650844,0.00032877,7]
[400597551,1767738643836,-609.90650844,0.00032877,7]
[400597552,1767738643846,-609.90650844,0.00032877,7]
[400597553,1767738643855,-609.90650844,0.00032877,7]
[400597554,1767738643865,-609.90650844,0.00032877,7]
[400597555,1767738643875,-609.90650844,0.00032877,7]
[400597556,1767738643884,-609.90650844,0.00032877,7]
[400597557,1767738643893,-609.90650844,0.00032877,7]
[400597558,1767738643903,-609.90650844,0.00032877,7]
[400597559,1767738643912,-609.90650844,0.00032877,7]
[400597560,1767738643922,-609.90650844,0.00032877,7]
[400597561,1767738643931,-609.90650844,0.00032877,7]
[400597562,1767738643941,-609.90650844,0.00032877,7]
[400597563,1767738643951,-609.90650844,0.00032877,7]
[400597564,1767738643960,-609.90650844,0.00032877,7]
[400597565,1767738643971,-609.90650844,0.00032877,7]
[400597566,1767738643980,-609.90650844,0.00032877,7]
[400597567,1767738643989,-609.90650844,0.00032877,7]
[400597568,1767738643999,-609.90650844,0.00032877,7]
[400597569,1767738644010,-609.90650844,0.00032877,7]
[400597570,1767738644020,-609.90650844,0.00032877,7]
[400597571,1767738644029,-609.90650844,0.00032877,7]
[400597572,1767738644039,-609.90650844,0.00032877,7]
[400597573,1767738644049,-609.90650844,0.00032877,7]
[400597574,1767738644058,-609.90650844,0.00032877,7]
[400597575,1767738644067,-609.90650844,0.00032877,7]
[400597576,1767738644077,-609.90650844,0.00032877,7]
[400597577,1767738644086,-609.90650844,0.00032877,7]
[400597578,1767738644096,-609.90650844,0.00032877,7]
[400597579,1767738644105,-609.90650844,0.00032877,7]
[400597580,1767738644115,-609.90650844,0.00032877,7]
[400597581,1767738644124,-609.90650844,0.00032877,7]
[400597582,1767738644134,-609.90650844,0.00032877,7]
[400597583,1767738644143,-609.90650844,0.00032877,7]
[400597584,1767738644152,-609.90650844,0.00032877,7]
[400597585,1767738644163,-609.90650844,0.00032877,7]
[400597586,1767738644174,-609.90650844,0.00032877,7]
[400597587,1767738644184,-609.90650844,0.00032877,7]
[400597588,1767738644193,-609.90650844,0.00032877,7]
[400597589,1767738644202,-609.90650844,0.00032877,7]
[400597590,1767738644211,-609.90650844,0.00032877,7]
[400597591,1767738644221,-609.90650844,0.00032877,7]
[400597592,1767738644231,-609.90650844,0.00032877,7]
[400597593,1767738644240,-609.90650844,0.00032877,7]
[400597594,1767738644249,-609.90650844,0.00032877,7]
[400597595,1767738644259,-609.90650844,0.00032877,7]
[400597596,1767738644268,-609.90650844,0.00032877,7]
[400597597,1767738644277,-609.90650844,0.00032877,7]
[400597598,1767738644287,-609.90650844,0.00032877,7]
[400597599,1767738644296,-609.90650844,0.00032877,7]
[400597600,1767738644305,-609.90650844,0.00032877,7]
[400597601,1767738644314,-609.90650844,0.00032877,7]
[400597602,1767738644324,-609.90650844,0.00032877,7]
[400597603,1767738644333,-598.8172992,0.00032877,7]
[400597604,1767738644343,-598.8172992,0.00032877,7]
[400597605,1767738644353,-598.8172992,0.00032877,7]
[400597606,1767738644363,-598.8172992,0.00032877,7]
[400597607,1767738644372,-598.8172992,0.00032877,7]
[400597608,1767738644381,-598.8172992,0.00032877,7]
[400597609,1767738644390,-598.8172992,0.00032877,7]
[400597610,1767738644399,-598.8172992,0.00032877,7]
[400597611,1767738644409,-598.8172992,0.00032877,7]
[400597612,1767738644418,-598.8172992,0.00032877,7]
[400597613,1767738644427,-598.8172992,0.00032877,7]
[400597614,1767738644436,-598.8172992,0.00032877,7]
[400597615,1767738644445,-598.8172992,0.00032877,7]
[400597616,1767738644454,-598.8172992,0.00032877,7]
[400597617,1767738644464,-598.8172992,0.00032877,7]
[400597618,1767738644473,-598.8172992,0.00032877,7]
[400597619,1767738644482,-731.88781014,0.00032877,7]
[400597620,1767738644491,-598.8172992,0.00032877,7]
[400597621,1767738644501,-598.8172992,0.00032877,7]
[400597622,1767738644510,-598.8172992,0.00032877,7]
[400597623,1767738644519,-598.8172992,0.00032877,7]
[400597624,1767738644642,-598.8172992,0.00032877,7]
[400597625,1767738644663,-598.8172992,0.00032877,7]
[400597626,1767738644675,-731.88781014,0.00032877,7]
[400597627,1767738644684,-598.8172992,0.00032877,7]
[400597628,1767738644693,-598.8172992,0.00032877,7]
[400597629,1767738644703,-598.8172992,0.00032877,7]
[400597630,1767738644711,-598.8172992,0.00032877,7]
[400597631,1767738644721,-598.8172992,0.00032877,7]
[400597632,1767738644730,-598.8172992,0.00032877,7]
[400597633,1767738644739,-598.8172992,0.00032877,7]
[400597634,1767738644748,-731.88781014,0.00032877,7]
[400597635,1767738644757,-598.8172992,0.00032877,7]
[400597636,1767738644766,-598.81729923,0.00032877,7]
[400597637,1767738644775,-598.81729923,0.00032877,7]
[400597638,1767738644785,-598.81729923,0.00032877,7]
[400597639,1767738644794,-1163.55,0.000329,14]
[400597640,1767738644803,-1033.6,0.000329,14]
[400597641,1767738644812,-3448.92,0.000329,2]
[400597642,1767738644822,-300.0,0.00032999,10]
[400597643,1767738644831,-552.05024768,0.00033,30]
[400597644,1767738644840,-51125.40259919,0.00033,2]
[400597645,1767738644850,-26289.76664934,0.00033,2]
[400597646,1767738644859,-51405.61485821,0.00033,2]
[400597647,1767738644869,-153.01341138,0.00033,2]
[400597648,1767738644879,-151.0,0.00033,31]
[400597649,1767738644888,-151.0,0.00033,31]
[400597650,1767738644898,-151.0,0.00033,31]
[400597651,1767738644907,-151.0,0.00033,31]
[400597652,1767738644916,-151.0,0.00033,31]
[400597653,1767738644926,-151.0,0.00033,31]
[400597654,1767738644935,-1994.8,0.00033019,3]
[400597655,1767738644944,-154.99868972,0.00033257,2]
[400597656,1767738644954,-4101.09,0.000333,14]
[400597657,1767738644963,-87743.27,0.000333,2]
[400597658,1767738644972,-151.0,0.00033462,31]
[400597659,1767738644981,-251.31162,0.00033462,31]
[400597660,1767738644991,-151.0,0.00033462,31]
[400597661,1767738644999,-251.31162,0.00033462,31]
[400597662,1767738645009,-1820.845269,0.00033462,31]
[400597663,1767738645018,-1684.885026,0.00033462,31]
[400597664,1767738645028,-251.31162,0.00033462,31]
[400597665,1767738645038,-1820.845269,0.00033462,31]
[400597666,1767738645047,-1684.885026,0.00033462,31]
[400597667,1767738645057,-251.31162,0.00033462,31]
[400597668,1767738645066,-1820.845269,0.00033462,31]
[400597669,1767738645077,-1684.885026,0.00033462,31]
[400597670,1767738645087,-1820.845269,0.00033462,31]
[400597671,1767738645097,-1684.885026,0.00033462,31]
[400597672,1767738645108,-151.0,0.00033462,31]
[400597673,1767738645118,-985.481451,0.00033462,31]
[400597674,1767738645128,-151.0,0.00033462,31]
[400597675,1767738645137,-985.481451,0.00033462,31]
[400597676,1767738645147,-997.029049,0.00033462,31]
[400597677,1767738645156,-985.481451,0.00033462,31]
[400597678,1767738645167,-997.029049,0.00033462,31]
[400597679,1767738645178,-985.481451,0.00033462,31]
[400597680,1767738645187,-997.029049,0.00033462,31]
[400597681,1767738645197,-391.466354,0.00033462,31]
[400597682,1767738645206,-997.029049,0.00033462,31]
[400597683,1767738645215,-391.466354,0.00033462,31]
[400597684,1767738645224,-391.466354,0.00033462,31]
[400597685,1767738645234,-391.466354,0.00033462,31]
[400597686,1767738645243,-980.547522,0.00033462,31]
[400597687,1767738645253,-980.547522,0.00033462,31]
[400597688,1767738645263,-980.547522,0.00033462,31]
[400597689,1767738645272,-980.547522,0.00033462,31]
[400597690,1767738645282,-151.0,0.00033462,31]
[400597691,1767738645292,-594.783126,0.00033462,31]
[400597692,1767738645301,-151.0,0.00033462,31]
[400597693,1767738645312,-151.0,0.00033462,31]
[400597694,1767738645322,-358.665808,0.00033462,31]
[400597695,1767738645332,-594.783126,0.00033462,31]
[400597696,1767738645343,-151.0,0.00033462,31]
[400597697,1767738645353,-594.783126,0.00033462,31]
[400597698,1767738645363,-358.665808,0.00033462,31]
[400597699,1767738645373,-264.32113,0.00033462,31]
[400597700,1767738645382,-594.783126,0.00033462,31]
[400597701,1767738645393,-358.665808,0.00033462,31]
[400597702,1767738645403,-264.32113,0.00033462,31]
[400597703,1767738645412,-162.51844,0.00033462,31]
[400597704,1767738645422,-358.665808,0.00033462,31]
[400597705,1767738645431,-264.32113,0.00033462,31]
[400597706,1767738645442,-264.32113,0.00033462,31]
[400597707,1767738645453,-151.0,0.00033462,31]
[400597708,1767738645464,-151.0,0.00033462,31]
[400597709,1767738645474,-1266.0,0.00033462,2]
[400597710,1767738645485,-433.0,0.00033462,2]
[400597711,1767738645496,-914.0,0.00033462,2]
[400597712,1767738645512,-1215.798,0.00033462,2]
[400597713,1767738645530,-614.0,0.00033462,2]
[400597714,1767738645547,-1329.0,0.00033462,2]
[400597715,1767738645568,-2435.0,0.00033462,2]
[400597716,1767738645584,-1207.15046117,0.000335,2]
[400597717,1767738645599,-1040.62,0.000335,30]
[400597718,1767738645617,-500.0,0.00033903,30]
[400597719,1767738645641,-325.97778318,0.00034,2]
[400597720,1767738645660,-772.98909842,0.00034,7]
[400597721,1767738645680,-1909.29605499,0.00034,2]
[400597722,1767738645699,-1033.6,0.000341,14]
[400597723,1767738645717,-3448.92,0.000341,2]
[400597724,1767738645729,-502.0,0.00034173,6]
[400597725,1767738645747,-1163.55,0.000344,14]
[400597726,1767738645759,-1725.60731908,0.0003449,2]
[400597727,1767738645776,-433.0,0.0003449,10]
[400597728,1767738645790,-5000.0,0.000345,14]
[400597729,1767738645806,-195.06,0.000348,2]
[400597730,1767738645823,-236.74555436,0.00034839,13]
[400597731,1767738645838,-6505.11467841,0.00034852,60]
[400597732,1767738645854,-354.5798613,0.0003488,120]
[400597733,1767738645870,-627.34601575,0.00035,30]
[400597734,1767738645888,-8532.61725714,0.00035,30]
[400597735,1767738645904,-9306.92456789,0.00035,30]
[400597736,1767738645918,-1911.22125804,0.00035,2]
[400597737,1767738645934,-1098.89790899,0.00035,30]
[400597738,1767738645948,-825.97217431,0.00035,30]
[400597739,1767738645963,-1040.62,0.00035,30]
[400597740,1767738645979,-178.13204382,0.00035,120]
[400597741,1767738645995,-401.13837131,0.00035,30]
[400597742,1767738646010,-1000.0,0.00035,7]
[400597743,1767738646025,-195.06,0.000351,2]
[400597744,1767738646039,-1994.8,0.00035113,4]
[400597745,1767738646053,-3448.92,0.000352,2]
[400597746,1767738646068,-4101.09,0.000352,14]
[400597747,1767738646083,-2076.5387,0.0003522,30]
[400597748,1767738646099,-2500.0,0.000353,14]
[400597749,1767738646114,-195.06,0.000354,2]
[400597750,1767738646128,-1033.6,0.000356,14]
[400597751,1767738646143,-87743.27,0.000356,2]
[400597752,1767738646158,-502.0,0.00035605,8]
[400597753,1767738646173,-30735.14588313,0.0003561,2]
[400597754,1767738646188,-250.92,0.00035616,114]
[400597755,1767738646205,-636.9,0.00035616,38]
[400597756,1767738646220,-579.9,0.00035616,48]
[400597757,1767738646235,-300.0,0.00035616,5]
[400597758,1767738646251,-383.95014612,0.00035616,7]
[400597759,1767738646268,-500.0,0.00035616,7]
[400597760,1767738646283,-500.0,0.00035616,7]
[400597761,1767738646298,-500.0,0.00035616,7]
[400597762,1767738646314,-500.0,0.00035616,7]
[400597763,1767738646328,-377.78775089,0.00035616,7]
[400597764,1767738646342,-500.0,0.00035616,7]
[400597765,1767738646357,-500.0,0.00035616,7]
[400597766,1767738646373,-487.38506539,0.00035616,7]
[400597767,1767738646388,-500.0,0.00035616,7]
[400597768,1767738646404,-500.0,0.00035616,7]
[400597771,1767738646419,-500.0,0.00035616,7]
[400597773,1767738646435,-486.42086121,0.00035616,7]
[400597776,1767738646451,-386.46558852,0.00035616,7]
[400597778,1767738646465,-500.0,0.00035616,7]
[400597780,1767738646481,-500.0,0.00035616,7]
[400597781,1767738646497,-500.0,0.00035616,7]
[400597782,1767738646512,-500.0,0.00035616,7]
[400597783,1767738646528,-500.0,0.00035616,7]
[400597784,1767738646542,-500.0,0.00035616,7]
[400597785,1767738646558,-500.0,0.00035616,7]
[400597786,1767738646574,-500.0,0.00035616,7]
[400597787,1767738646590,-500.0,0.00035616,7]
[400597788,1767738646605,-500.0,0.00035616,7]
[400597789,1767738646621,-500.0,0.00035616,7]
[400597790,1767738646640,-500.0,0.00035616,7]
[400597791,1767738646656,-500.0,0.00035616,7]
[400597792,1767738646672,-500.0,0.00035616,7]
[400597793,1767738646686,-500.0,0.00035616,7]
[400597794,1767738646703,-500.0,0.00035616,7]
[400597795,1767738646718,-500.0,0.00035616,7]
[400597796,1767738646735,-187.15,0.00035616,2]
[400597797,1767738646751,-1152.288,0.00035677,42]
[400597798,1767738646765,-159.882,0.00035677,42]
[400597799,1767738646781,-826.55,0.000357,30]
[400597800,1767738646796,-173.012936,0.000357,5]
[400597801,1767738646811,-167.87682571,0.00035885,2]
[400597802,1767738646826,-758.4462,0.00035888,30]
[400597803,1767738646841,-1163.55,0.000359,14]
[400597804,1767738646856,-613.8,0.00036049,30]
[400597805,1767738646871,-76271.302265,0.00036073,2]
[400597806,1767738647069,-758.4462,0.00036088,30]
[400597807,1767738647090,-2659.4200907,0.00036282,2]
[400597808,1767738647102,-758.4462,0.00036288,30]
[400597809,1767738647112,-600.0,0.00036438,5]
[400597810,1767738647121,-1266.0,0.00036462,2]
[400597811,1767738647131,-433.0,0.00036462,2]
[400597812,1767738647140,-914.0,0.00036462,2]
[400597813,1767738647150,-1200.0,0.00036462,2]
[400597814,1767738647159,-614.0,0.00036462,2]
[400597815,1767738647168,-1329.0,0.00036462,2]
[400597816,1767738647178,-2435.0,0.00036462,2]
[400597817,1767738647188,-758.4462,0.00036488,30]
[400597818,1767738647197,-1040.62,0.000365,30]
[400597819,1767738647207,-758.4462,0.00036688,30]
[400597820,1767738647218,-3448.92,0.000367,2]
[400597821,1767738647228,-154.98,0.00036705,2]
[400597822,1767738647238,-758.4462,0.00036888,30]
[400597823,1767738647249,-1033.6,0.000369,14]
[400597824,1767738647258,-73152.9651395,0.00037,7]
[400597825,1767738647268,-28147.1036884,0.00037037,2]
[400597826,1767738647278,-502.0,0.00037037,10]
[400597827,1767738647287,-758.4462,0.00037088,30]
[400597828,1767738647297,-4101.09,0.000372,14]
[400597829,1767738647307,-1994.8,0.00037207,5]
[400597830,1767738647317,-900.0,0.0003726,5]
[400597831,1767738647327,-758.4462,0.00037288,30]
[400597832,1767738647336,-1163.55,0.000373,14]
[400597833,1767738647346,-758.4462,0.00037488,30]
[400597834,1767738647356,-17018.4278891,0.00037492,2]
[400597835,1767738647365,-2479.66,0.000375,30]
[400597836,1767738647375,-87743.27,0.000375,2]
[400597837,1767738647385,-758.4462,0.00037688,30]
[400597838,1767738647395,-1040.62,0.000377,30]
[400597839,1767738647404,-593.3968307,0.00037748,2]
[400597840,1767738647415,-758.4462,0.00037888,30]
[400597841,1767738647425,-70446.14347067,0.000379,30]
[400597842,1767738647436,-1033.6,0.00038,14]
[400597843,1767738647446,-1023.62372196,0.00038,7]
[400597844,1767738647456,-152.0,0.00038002,3]
[400597845,1767738647465,-900.0,0.00038082,5]
[400597846,1767738647475,-758.4462,0.00038088,30]
[400597847,1767738647484,-758.4462,0.00038288,30]
[400597848,1767738647494,-255.83091864,0.000383,30]
[400597849,1767738647504,-452.55688095,0.00038356,7]
[400597850,1767738647513,-1000.0,0.00038356,5]
[400597851,1767738647523,-502.0,0.00038469,11]
[400597852,1767738647533,-758.4462,0.00038488,30]
[400597853,1767738647542,-160.0,0.000385,26]
[400597854,1767738647551,-24031.90452913,0.000385,30]
[400597855,1767738647562,-1163.55,0.000386,14]
[400597856,1767738647571,-758.4462,0.00038688,30]
[400597857,1767738647580,-992.86947112,0.00038767,5]
[400597858,1767738647590,-2195.79087076,0.000389,31]
[400597859,1767738647600,-1000.0,0.00039,120]
[400597860,1767738647610,-419.29818059,0.00039,10]
[400597861,1767738647620,-1713.54772393,0.00039,2]
[400597862,1767738647632,-449215.79540874,0.00039,120]
[400597863,1767738647641,-151.0,0.00039,120]
[400597864,1767738647651,-993.472291,0.00039,120]
[400597865,1767738647660,-2698.972455,0.00039,120]
[400597866,1767738647670,-2698.972455,0.00039,120]
[400597867,1767738647681,-993.472291,0.00039,120]
[400597868,1767738647690,-151.0,0.00039,120]
[400597869,1767738647702,-2698.972455,0.00039,120]
[400597870,1767738647711,-2698.972455,0.00039,120]
[400597871,1767738647722,-552.599779,0.00039,15]
[400597872,1767738647731,-242.109031,0.00039,120]
[400597873,1767738647741,-993.472291,0.00039,120]
[400597874,1767738647751,-552.599779,0.00039,15]
[400597875,1767738647760,-242.109031,0.00039,120]
[400597876,1767738647769,-993.472291,0.00039,120]
[400597877,1767738647778,-552.599779,0.00039,15]
[400597878,1767738647787,-242.109031,0.00039,120]
[400597879,1767738647796,-552.599779,0.00039,15]
[400597880,1767738647805,-242.109031,0.00039,120]
[400597881,1767738647815,-151.0,0.00039,120]
[400597882,1767738647824,-152.729497,0.00039,120]
[400597883,1767738647833,-152.729497,0.00039,120]
[400597884,1767738647842,-152.729497,0.00039,120]
[400597885,1767738647851,-152.729497,0.00039,120]
[400597886,1767738647861,-151.0,0.00039,120]
[400597887,1767738647871,-1018.0,0.00039,7]
[400597888,1767738647880,-151.0,0.00039,120]
[400597889,1767738647889,-412.123505,0.00039,120]
[400597890,1767738647898,-412.123505,0.00039,120]
[400597891,1767738647907,-412.123505,0.00039,120]
[400597892,1767738647916,-412.123505,0.00039,120]
[400597893,1767738647925,-151.0,0.00039,7]
[400597894,1767738647935,-151.0,0.00039,7]
[400597895,1767738647944,-151.0,0.00039,7]
[400597896,1767738647954,-734.35695016,0.00039025,30]
[400597897,1767738647963,-806.716922,0.00039041,120]
[400597898,1767738647973,-806.716922,0.00039041,120]
[400597899,1767738647984,-806.716922,0.00039041,120]
[400597900,1767738647993,-806.716922,0.00039041,120]
[400597901,1767738648004,-806.716922,0.00039041,120]
[400597902,1767738648022,-806.716922,0.00039041,120]
[400597903,1767738648032,-806.716922,0.00039041,120]
[400597904,1767738648042,-806.716922,0.00039041,120]
[400597905,1767738648053,-758.4462,0.00039088,30]
[400597906,1767738648063,-151.0,0.00039097,14]
[400597907,1767738648072,-1040.62,0.000391,30]
[400597908,1767738648081,-4101.09,0.000391,14]
[400597909,1767738648091,-87743.27,0.000391,2]
[400597910,1767738648114,-1000.0,0.0003915,90]
[400597911,1767738648124,-1551.65362228,0.00039165,2]
[400597912,1767738648133,-1551.65362228,0.00039165,2]
[400597913,1767738648143,-1033.6,0.000392,14]
[400597914,1767738648152,-758.4462,0.00039288,30]
[400597915,1767738648162,-1994.8,0.000393,6]
[400597916,1767738648171,-800.0,0.00039433,13]
[400597917,1767738648181,-800.0,0.00039433,13]
[400597918,1767738648191,-800.0,0.00039433,13]
[400597919,1767738648200,-800.0,0.00039433,13]